{"text_format":"1","workbook":"xlsx","n_sheets":10,"sheets":["Notices","Investments Form","Investments Assumptions","Income Statement Form","Income Statement Assumptions","Operating Assumptions Form","Cash Flow Statement Form","Cash Flow Statement Assumptions"," Recapture of Investment Form","Recapture of Inv Assumptions"],"not_rendered":{"charts":0,"images":0,"macros":1,"external_links":0,"defined_names":63,"comments":0,"pivot_tables":0},"unopened":[],"bounds":{"document_bytes":16777216,"sheet_cells":100000,"rows_first":2000,"rows_last":500,"rows_between":2000,"halvings":0,"cell_chars":16384,"cell_head_chars":4096},"cells_cut":0,"cells_raw":0,"read":"whole","date_system":"1900"}

{"sheet":"Notices","index":0,"n_rows":10,"n_cols":1,"rows_kept":10,"cut":false,"hidden":false,"merged":[[6,0,6,9],[7,0,7,9],[8,0,8,9],[9,0,9,9],[0,0,0,9],[1,0,1,9],[2,0,2,9],[3,0,3,9],[4,0,4,9],[5,0,5,9]]}
["NOTICES"]
[]
["PRIVACY ACT"]
["Authority: The authority to collect information on the attached form is derived from 54 U.S.C. 1019, Concessions and Commercial Use Authorizations.\n\nPurpose: The purposes of the system are to assist NPS employees in managing the National Park Service Commercial Services program allowing commercial uses within a unit of the National Park System to ensure that business activities are conducted in a manner that complies with Federal laws and regulations and to evaluate offerors who desire to conduct or are conducting business within units of the National Park System.\n\nRoutine Uses:  In addition to those disclosures generally permitted under 5 U.S.C.552a(b) of the Privacy Act, records or information contained in this system may be disclosed outside the National Park Service as a routine use pursuant to 5 U.S.C. 552a(b)(3) to other Federal, State, territorial, local, tribal, or foreign agencies and other authorized organizations and individuals based on an authorized routine use when the disclosure is compatible with the purpose for which the records were compiled as described under the system of records notice INTERIOR/NPS-15, Concessions Management Files 48 FR 51696 (November 10, 1983); Modification published 73 FR 63992 (October 28, 2008) and 86 FR 50156 (September 7, 2021). This notice can be found at https://www.doi.gov/privacy/sorn. \n\nDisclosure: Providing your information is voluntary, however, failure to provide the requested information may impede the evaluation of your proposal in response to available concession opportunities."]
[]
["PAPERWORK REDUCTION ACT STATEMENT"]
["We collect this information under the authority of Title IV of the National Parks Omnibus Management Act of 1998 (Pub. L. 105–391).  We use this information to evaluate a concession proposal.  Your response is required to obtain or retain a benefit.  Your response is required to obtain or retain a benefit.  We may not collect or sponsor and you are not required to respond to a collection of information unless it displays a currently valid OMB control number.  OMB has approved this collection of information and assigned Control No. 1024-0029."]
[]
["ESTIMATED BURDEN STATEMENT"]
["We estimate that it will take you 10 hours to complete this form, including time to review instructions, gather and maintain data, and complete and review the form.  You may send comments on the burden estimate or any aspect of this form to the Information Collection Clearance Officer, National Park Service, 1201 Oakridge Drive, Fort Collins, CO 80550.  Please do not send your completed form to this address."]

{"sheet":"Investments Form","index":1,"n_rows":74,"n_cols":5,"rows_kept":74,"cut":false,"hidden":false,"merged":[]}
["INITIAL INVESTMENTS AND START-UP EXPENSES FORM"]
[]
["Grey Cells Are Input Cells"]
[]
["Name of Offeror"]
[]
["CONCID","CC-OLYM003-26"]
[]
["Assets "]
["Existing Assets"]
["Assets necessary to the operation of the Concession, already owned by the Offeror, that will be allocated to the "]
["operation of the Draft Contract."]
[]
[null,"Leasehold Surrender Interest Value"]
[null,"Real Property (not within the Park)"]
[null,"Personal  Property"]
[null,"Inventory and Supplies"]
[null,"Other (describe)"]
[]
[null,null,"Subtotal",{"$f":"SUM(D14:D18)","v":0}]
[]
["Planned Asset Acquisition"]
["Assets necessary to Operate the Concession, that will be acquired by the Offeror if awarded the Draft Contract."]
[]
[null,"Leasehold Surrender Interest Value"]
[null,"Real Property (not within the Park)"]
[null,"Personal Property"]
[null,"Inventory and Supplies"]
[null,"Other (describe)"]
[]
[null,null,"Subtotal",{"$f":"SUM(D25:D29)","v":0}]
[]
[null,null,null,"Total",{"$f":"D20+D31","v":0}]
[]
["Other"]
[]
[null,"Start-Up Expenses"]
[null,"Working Capital"]
[null,"Deferred Maintenance (Years 1 and 2)"]
[null,"Concession Facility Improvement Program (NLT 12/31/2029)"]
[null,"Personal Property Improvement Requirement (Year 1)"]
[null,"Other (describe)"]
[]
[null,null,null,"Total",{"$f":"SUM(D37:D42)","v":0}]
[]
[null,null,null,"Total Initial Investments and Start-up Expenses",{"$f":"+E44+E33","v":0}]
[]
["Notes"]
["1) Formulas included in this form are provided by the NPS as guidance only. The Offeror is responsible for its financial "]
["projections and their accuracy."]
[]
["2) Yellow cells represent categories that need to be explained on the \"Investments Assumptions\" worksheet."]
[]
["3) All Offerors must include their estimate of the value of all property intended, whether planned for acquisition or currently owened, for use in the"]
["Draft Contract."]
[]
["4) The items indicated above are the estimated planned expenditures for initial investment, defined as one-time costs in either the year prior to or"]
["the first year after the start of the Draft Contract. Exceptions include DM (Years 1-2) and CFIP investment (due no later than 12/31/2029)."]
[]
["5) Expenditures entered in this form should be in addition to that of typical annual capital investments and operating expenses of the first year of the"]
["Draft Contract"]
[]
["6) Expenditures entered into this form should not be included in the proforma income statement. "]
[]
["7) Expenditures entered in this form should be included in the cash flow proforma as capital expenditures in either the year prior to or the first year"]
["after the start of the Draft Contract. "]
[]
["Definitions"]
["Start-up Expenses"]
["One-time expenses incurred prior to the beginning of the contract, or during the first year of the contract, if needed, to implement your proposal."]
[]
["Working Capital"]
["Additional funds for working capital current assets such as pre-paid expenses, contingencies, and other necessary cash flow requirements. This"]
["should not be confused with Net Working Capital (current assets-current liabilities). "]

{"sheet":"Investments Assumptions","index":2,"n_rows":39,"n_cols":2,"rows_kept":39,"cut":false,"hidden":false,"merged":[]}
["INITIAL INVESTMENTS AND START-UP EXPENSES ASSUMPTIONS"]
[]
["Grey Cells Are Input Cells"]
[]
["Name of Offeror"]
[]
["CONCID","CC-OLYM003-26"]
[]
["Assets "]
["Existing Assets"]
["Assets necessary to the operation of the Concession already owned by the Offeror that will be allocated to the operation "]
["of the Draft Contract. "]
[]
["Possessory Interest/Leasehold Surrender Interest Value","Describe"]
["Real Property (not within the Park)","Describe"]
["Personal Property","Describe"]
["Inventory and Supplies","Describe"]
["Other (describe)","Describe"]
[]
["Planned Asset Acquisition"]
["Assets necessary to Operate the Concession that will be acquired by the Offeror if awarded the Draft Contract."]
[]
["Possessory Interest/Leasehold Surrender Interest Value","Describe"]
["Real Property (not within the Park)","Describe"]
["Personal Property","Describe"]
["Inventory and Supplies","Describe"]
["Other (describe)","Describe"]
[]
["Other"]
["Start-Up Expenses","Describe"]
["Working Capital","Describe"]
["Deferred Maintenance ","Describe"]
["Concession Facility Improvement Program (CFIP)","Describe"]
["Personal Property Improvement Requirement (PPIR)","Describe"]
["Other (describe)","Describe"]
[]
["Notes"]
["1) In the description sections of this form, please provide an explanation of sufficient detail to allow a reviewer to fully "]
["understand how the estimates were determined. "]

{"sheet":"Income Statement Form","index":3,"n_rows":148,"n_cols":13,"rows_kept":148,"cut":false,"hidden":false,"merged":[]}
["INCOME STATEMENT FORM"]
[]
["Grey Cells Are Input Cells"]
[]
["Name of Offeror"]
[]
["CONCID","CC-OLYM003-26"]
[]
["Prospective Income Statement"]
[]
[null,2026,{"$f":"B11+1","v":2027},2028,2029,2030,2031,2032,2033,2034,2035,{"$f":"K11+1","v":2036},{"$f":"L11+1","v":2037}]
[]
["Revenue"]
["Lodging"]
["    Lake Crescent Lodge"]
[" Log Cabin Resort"]
["Total Lodging Revenue",{"$f":"SUM(B15:B16)","v":0},{"$f":"SUM(C15:C16)","v":0},0,0,0,0,0,0,0,0,0,0]
["Food and Beverage"]
["Lake Crescent Lodge Dining Room"]
["Log Cabin Resort Café"]
["Bar and Lounge"]
["Other (Specify)"]
["Total Food & Beverage",{"$f":"SUM(B19:B22)","v":0},0,0,0,0,0,0,0,0,0,0,0]
["Retail "]
["    Lake Crescent Lodge Gift Shop"]
["    Log Cabin Resort Retail"]
["    Fairholme Store"]
["    Other (Specify)"]
["Total Retail Revenue",{"$f":"SUM(B25:B28)","v":0},{"$f":"SUM(C25:C28)","v":0},0,0,0,0,0,0,0,0,0,0]
["Camping"]
["    RV Camping"]
[" Tent Camping"]
["Total Camping Revenue",{"$f":"SUM(B31:B32)","v":0},{"$f":"SUM(C31:C32)","v":0},0,0,0,0,0,0,0,0,0,0]
["Boat Rentals / Marine"]
["Boat Rentals/Marine"]
["Total Boat Rentals/Marine",{"$f":"+B35","v":0},{"$f":"+C35","v":0},0,0,0,0,0,0,0,0,0,0]
["Firewood"]
["Log Cabin Firewood"]
["Fairholme Firewood"]
["Total Firewood",{"$f":"+SUM(B38:B39)","v":0},{"$f":"+SUM(C38:C39)","v":0},0,0,0,0,0,0,0,0,0,0]
["Other (Specify) "]
["Other (Specify) "]
["Other (Specify) "]
["     Total Other Revenue",{"$f":"SUM(B41:B43)","v":0},{"$f":"SUM(C41:C43)","v":0},0,0,0,0,0,0,0,0,0,0]
[]
["Total Gross Revenue",{"$f":"SUM(B17,B23,B29,B33,B36,B40,B44)","v":0},0,0,0,0,0,0,0,0,0,0,0]
["Total Deductions"]
["Total Gross Receipts (if Different)",{"$f":"B46-B47","v":0},{"$f":"C46-C47","v":0},0,0,0,0,0,0,0,0,{"$f":"L46-L47","v":0},0]
[]
["Cost of Sales"]
["Lodging"]
["Food and Beverage"]
["Retail "]
["Other (Specify)"]
[]
["Total Cost of Sales",{"$f":"SUM(B51:B54)","v":0},0,0,0,0,0,0,0,0,0,{"$f":"SUM(L51:L54)","v":0},0]
[]
["Gross Profit",{"$f":"B46-B56","v":0},0,0,0,0,0,0,0,0,0,{"$f":"L46-L56","v":0},0]
[]
["Direct Expenses"]
[]
["Lodging"]
["Salaries and Wages"]
["Payroll Taxes and Benefits"]
["Other Departmental Expenses"]
["Total Lodging Expenses",{"$f":"+SUM(B63:B65)","v":0},{"$f":"+SUM(C63:C65)","v":0},0,0,0,0,0,0,0,0,{"$f":"+SUM(L63:L65)","v":0},0]
[]
["Food and Beverage"]
["Salaries and Wages"]
["Payroll Taxes and Benefits"]
["Other Departmental Expenses"]
["Total Food and Beverage Expenses",{"$f":"+SUM(B69:B71)","v":0},0,0,0,0,0,0,0,0,0,{"$f":"+SUM(L69:L71)","v":0},0]
[]
["Retail"]
["Salaries and Wages"]
["Payroll Taxes and Benefits"]
["Other Departmental Expenses"]
["Total Retail Expenses",{"$f":"+SUM(B75:B77)","v":0},{"$f":"+SUM(C75:C77)","v":0},0,0,0,0,0,0,0,0,{"$f":"+SUM(L75:L77)","v":0},0]
[]
["Other Departmental Expenses (Specify)"]
["Salaries and Wages"]
["Payroll Taxes and Benefits"]
["Other Departmental Expenses"]
["Total Other Expenses",{"$f":"+SUM(B81:B83)","v":0},0,0,0,0,0,0,0,0,0,{"$f":"+SUM(L81:L83)","v":0},0]
[]
["Other Direct Expenses"]
[]
["Total Direct Expenses",{"$f":"SUM(B66,B72,B78,B84,B86)","v":0},0,0,0,0,0,0,0,0,0,0,0]
[]
["Undistributed Expenses"]
["Other Salaries"]
["Utilities"]
["Repair and Maintenance Expense"]
["Office Supplies"]
["Telecommunications (Telephone/Internet, etc)"]
["Management / Overhead"]
["Advertising"]
["Other Admin"]
["Other Undistributed"]
[]
["Total Undistributed Expenses",{"$f":"SUM(B91:B99)","v":0},0,0,0,0,0,0,0,0,0,0,0]
[]
["Fixed Expenses"]
["Insurance"]
["Property Taxes"]
["Property Rental"]
["Other (Specify)"]
[]
["Total Fixed Expenses",{"$f":"SUM(B104:B107)","v":0},{"$f":"SUM(C104:C107)","v":0},0,0,0,0,0,0,0,0,{"$f":"SUM(L104:L107)","v":0},0]
[]
["Total Operating Expenses",{"$f":"B109+B101+B88+B56","v":0},0,0,0,0,0,0,0,0,0,0,0]
[]
["EBITDA Before FF",{"$f":"B46-B111","v":0},0,0,0,0,0,0,0,0,0,0,0]
[]
["Franchise Fee"]
[]
["EBITDA",{"$f":"B113-B115","v":0},{"$f":"C113-C115","v":0},0,0,0,0,0,0,0,0,{"$f":"L113-L115","v":0},0]
[]
["Interest Expense"]
["Depreciation"]
["Amortization"]
[]
["Net Profit Before Taxes",{"$f":"B117-SUM(B119:B121)","v":0},{"$f":"C117-SUM(C119:C121)","v":0},0,0,0,0,0,0,0,{"$f":"K117-SUM(K119:K121)","v":0},{"$f":"L117-SUM(L119:L121)","v":0},0]
[]
["Income Tax"]
[]
["Net Income",{"$f":"B123-B125","v":0},{"$f":"C123-C125","v":0},0,0,0,0,0,0,0,0,{"$f":"L123-L125","v":0},0]
[]
["Notes"]
["1) Formulas included in this form are provided by the NPS as guidance only. The Offeror is responsible for its financial projections and their accuracy."]
[]
["2) Yellow cells represent categories that need to be explained on the \"Income Statement Assumptions\" worksheet."]
[]
["3) Only projected receipts and expenses related to the services “required” by the contract and those you choose to operate under “authorized” services are to be itemized and included in "]
["your prospective statements. Please clearly identify, by service type, all revenues associated with authorized services."]
[]
["4) The NPS views the treatment of Repair and Maintenance Reserve (component renewal) items as leasehold improvements. It is expected that the cost will be amortized over the shorter of "]
["the useful life of the asset or the contract term. "]
[]
["Definitions"]
["Gross Receipts"]
["Gross Revenues less any revenues that are exempt from franchise fee."]
[]
["EBITDA Before FF "]
["Earnings Before Interest, Taxes, Depreciation, Amortization, and Franchise Fee."]
[]
["Franchise Fee"]
["A percentage of gross receipts due to the National Park Service. "]

{"sheet":"Income Statement Assumptions","index":4,"n_rows":57,"n_cols":2,"rows_kept":57,"cut":false,"hidden":false,"merged":[]}
["INCOME STATEMENT ASSUMPTIONS"]
[]
["Grey Cells Are Input Cells"]
[]
["Name of Offeror"]
[]
["CONCID","CC-OLYM003-26"]
[]
["Revenue"]
["See Operating Assumptions Tab"]
[]
["Cost of Sales (Provide for Each Department)"]
["All Applicable Departments\n","Describe"]
[]
["Direct Expenses (Provide for Each Department)"]
["Labor - Salaries & Wages","Describe"]
["Payroll Taxes & Benefits ","Describe"]
["Other Departmental Expenses","Describe"]
["Undistributed Expenses"]
["Other Salaries","Describe"]
["Utilities","Describe"]
["Repair & Maintenance","Describe"]
["Office Supplies","Describe"]
["Telecommunications (Phone/Internet, etc.)","Describe"]
["Management Fee / Overhead","Describe"]
["Advertising","Describe"]
["Vehicle Expense","Describe"]
["Other Admin","Describe"]
["Other Undistributed","Describe"]
["Fixed Expenses"]
["Insurance","Describe"]
["Property Taxes","Describe"]
["Property Rental","Describe"]
["Other","Describe"]
[]
["Notes"]
["1) In the description sections of this form, please provide an explanation of sufficient detail to allow a reviewer to fully "]
["understand how the estimates were determined. "]
[]
["2) If you are going to offer authorized services, please clearly identify which service(s) you will offer and use additional "]
["separate rows for each authorized service department. Labor costs should be supported by a footnote identifying Full "]
["Time Equivalents (FTE) occupied for each operating department identified."]
[]
["3) Clearly describe the composition of each item classified under Undistributed and Fixed Expenses. If the expense item "]
["is allocated from or shared with a parent or related entity, please describe the allocation method. In particular, if you "]
["intend to assess a Management Fee, or other form of corporate overhead and profit, you must clearly describe what this "]
["fee is comprised of (Officer salaries, human resources, accounting, marketing, profit, etc.)."]
[]
["Expense Assumption Description Example"]
["***The following example does not reflect the above opportunity and is provided for the purpose of clarification only.***"]
[]
["Direct expenses are expected to surpass historical direct expenses, as fuel and insurance prices increase. Studies by "]
["the Department of Commerce indicate that fuel prices will to rise at a rate of 10% annually over the next ten years, as "]
["opposed to the historical ten year rate of 4% annually. Additionally, insurance costs, according to a nationwide "]
["insurance broker survey, are expected to rise at 15% annually for the next 10 years, as opposed to the 10 year historical "]
["rate of 2% annually. Accordingly, direct expenses associated with the operation are forecast to increase from an annual "]
["average of 10% of Gross Revenue to an annual average of 20% of Gross Revenues over the life of the Draft Contract."]

{"sheet":"Operating Assumptions Form","index":5,"n_rows":114,"n_cols":15,"rows_kept":114,"cut":false,"hidden":false,"merged":[[97,14,98,14],[72,14,77,14],[81,14,86,14],[10,14,11,14],[15,14,20,14],[54,14,55,14],[92,14,93,14],[24,14,29,14],[59,14,60,14],[64,14,65,14]]}
["OPERATING ASSUMPTIONS"]
[]
["Grey Cells Are Input Cells"]
[]
["Name of Offeror"]
[]
["CONCID","CC-OLYM003-26"]
[]
[null,2026,{"$f":"B9+1","v":2027},2028,2029,2030,{"$f":"F9+1","v":2031},2032,2033,2034,2035,{"$f":"K9+1","v":2036},{"$f":"L9+1","v":2037}]
[]
["Revenue Inflation",null,{"$f":"'Income Statement Form'!C48/'Income Statement Form'!B48-1","v":{"$error":"#DIV/0!"}},{"$f":"'Income Statement Form'!D48/'Income Statement Form'!C48-1","v":{"$error":"#DIV/0!"}},{"$f":"'Income Statement Form'!E48/'Income Statement Form'!D48-1","v":{"$error":"#DIV/0!"}},{"$f":"'Income Statement Form'!F48/'Income Statement Form'!E48-1","v":{"$error":"#DIV/0!"}},{"$f":"'Income Statement Form'!G48/'Income Statement Form'!F48-1","v":{"$error":"#DIV/0!"}},{"$f":"'Income Statement Form'!H48/'Income Statement Form'!G48-1","v":{"$error":"#DIV/0!"}},{"$f":"'Income Statement Form'!I48/'Income Statement Form'!H48-1","v":{"$error":"#DIV/0!"}},{"$f":"'Income Statement Form'!J48/'Income Statement Form'!I48-1","v":{"$error":"#DIV/0!"}},{"$f":"'Income Statement Form'!K48/'Income Statement Form'!J48-1","v":{"$error":"#DIV/0!"}},{"$f":"'Income Statement Form'!L48/'Income Statement Form'!K48-1","v":{"$error":"#DIV/0!"}},{"$f":"'Income Statement Form'!M48/'Income Statement Form'!L48-1","v":{"$error":"#DIV/0!"}},null,"Additional Description"]
["Expense Inflation",null,{"$f":"'Income Statement Form'!C111/'Income Statement Form'!B111-1","v":{"$error":"#DIV/0!"}},{"$f":"'Income Statement Form'!D111/'Income Statement Form'!C111-1","v":{"$error":"#DIV/0!"}},{"$f":"'Income Statement Form'!E111/'Income Statement Form'!D111-1","v":{"$error":"#DIV/0!"}},{"$f":"'Income Statement Form'!F111/'Income Statement Form'!E111-1","v":{"$error":"#DIV/0!"}},{"$f":"'Income Statement Form'!G111/'Income Statement Form'!F111-1","v":{"$error":"#DIV/0!"}},{"$f":"'Income Statement Form'!H111/'Income Statement Form'!G111-1","v":{"$error":"#DIV/0!"}},{"$f":"'Income Statement Form'!I111/'Income Statement Form'!H111-1","v":{"$error":"#DIV/0!"}},{"$f":"'Income Statement Form'!J111/'Income Statement Form'!I111-1","v":{"$error":"#DIV/0!"}},{"$f":"'Income Statement Form'!K111/'Income Statement Form'!J111-1","v":{"$error":"#DIV/0!"}},{"$f":"'Income Statement Form'!L111/'Income Statement Form'!K111-1","v":{"$error":"#DIV/0!"}},{"$f":"'Income Statement Form'!M111/'Income Statement Form'!L111-1","v":{"$error":"#DIV/0!"}}]
[]
["Lodging"]
["Lake Crescent Lodge"]
["Number of Available Rooms",null,null,null,null,null,null,null,null,null,null,null,null,null,"Additional Description"]
["Days Open per Season"]
["Available Room Nights"]
["Occupied Room Nights"]
["Occupancy %"]
["Average Daily Rate"]
["Total Lake Crescent Lodge Revenue",{"$f":"B21*B19","v":0},{"$f":"C21*C19","v":0},0,0,0,0,0,0,0,{"$f":"K21*K19","v":0},{"$f":"L21*L19","v":0},0]
[]
["Log Cabin Resort"]
["Number of Available Rooms",null,null,null,null,null,null,null,null,null,null,null,null,null,"Additional Description"]
["Days Open per Season"]
["Available Room Nights"]
["Occupied Room Nights"]
["Occupancy %"]
["Average Daily Rate"]
["Total Log Cabin Resort Revenue",{"$f":"B30*B28","v":0},{"$f":"C30*C28","v":0},0,0,0,0,0,0,0,{"$f":"K30*K28","v":0},{"$f":"L30*L28","v":0},0]
[]
["TOTAL LODGING REVENUE",{"$f":"B22+B31","v":0},{"$f":"C22+C31","v":0},0,0,0,0,0,0,0,0,0,0]
[]
["Food & Beverage"]
["Lake Crescent Lodge Dining Room"]
["Total Covers",null,null,null,null,null,null,null,null,null,null,null,null,null,"Additional Description"]
["Average Check"]
["Lake Crescent Lodge Dining Room Revenue",{"$f":"B37*B38","v":0},{"$f":"C37*C38","v":0},0,0,0,0,0,0,0,0,{"$f":"L37*L38","v":0},0]
[]
["Log Cabin Resort Café"]
["Total Covers",null,null,null,null,null,null,null,null,null,null,null,null,null,"Additional Description"]
["Average Check"]
["Log Cabin Resort Café Revenue",{"$f":"B42*B43","v":0},{"$f":"C42*C43","v":0},0,0,0,0,0,0,0,0,{"$f":"L42*L43","v":0},0]
[]
["Other Food and Beverage Revenue"]
["Total Covers",null,null,null,null,null,null,null,null,null,null,null,null,null,"Additional Description"]
["Average Check"]
["Other Food and Beverage Revenue"]
[]
["TOTAL FOOD & BEVERAGE REVENUE",{"$f":"SUM(B39,B44,B49)","v":0},0,0,0,0,0,0,0,0,0,0,0]
[]
["Retail"]
["Lake Crescent Lodge Gift Shop"]
["Total Transactions",null,null,null,null,null,null,null,null,null,null,null,null,null,"Additional Description"]
["Average Revenue Per Transaction"]
["Lake Crescent Lodge Gift Shop Revenue",{"$f":"B55*B56","v":0},{"$f":"C55*C56","v":0},0,0,0,0,0,0,0,0,{"$f":"L55*L56","v":0},0]
[]
["Log Cabin Resort Retail"]
["Total Transactions",null,null,null,null,null,null,null,null,null,null,null,null,null,"Additional Description"]
["Average Revenue Per Transaction"]
["Log Cabin Resort Retail Revenue",{"$f":"B60*B61","v":0},{"$f":"C60*C61","v":0},0,0,0,0,0,0,0,0,0,0]
[]
["Fairholme Store"]
["Total Transactions",null,null,null,null,null,null,null,null,null,null,null,null,null,"Additional Description"]
["Average Revenue Per Transaction"]
["Fairholme Store Retail Revenue",{"$f":"B65*B66","v":0},{"$f":"C65*C66","v":0},0,0,0,0,0,0,0,0,0,0]
[]
["TOTAL RETAIL REVENUE",{"$f":"B57","v":0},{"$f":"C57","v":0},0,0,0,0,0,0,0,0,{"$f":"L57","v":0},0]
[]
["Camping"]
["Log Cabin Resort RV Sites"]
["Number of Available Sites",null,null,null,null,null,null,null,null,null,null,null,null,null,"Additional Description"]
["Days Open per Season"]
["Available Site Nights"]
["Occupied Site Nights"]
["Occupancy %"]
["Average Daily Rate"]
["Total RV Site Revenue",{"$f":"B78*B76","v":0},{"$f":"C78*C76","v":0},0,0,0,0,0,0,0,{"$f":"K78*K76","v":0},{"$f":"L78*L76","v":0},0]
[]
["Log Cabin Resort Tent Sites"]
["Number of Available Sites",null,null,null,null,null,null,null,null,null,null,null,null,null,"Additional Description"]
["Days Open per Season"]
["Available Site Nights"]
["Occupied Site Nights"]
["Occupancy %"]
["Average Daily Rate"]
["Total Tent Site Revenue",{"$f":"B87*B85","v":0},{"$f":"C87*C85","v":0},0,0,0,0,0,0,0,{"$f":"K87*K85","v":0},{"$f":"L87*L85","v":0},0]
[]
["TOTAL CAMPING REVENUE",{"$f":"B79","v":0},{"$f":"C79","v":0},0,0,0,0,0,0,0,0,0,0]
[]
["Other (describe)"]
["Number of Customers",null,null,null,null,null,null,null,null,null,null,null,null,null,"Additional Description"]
["Average Revenue Per Customer"]
["Other Revenue",{"$f":"B93*B94","v":0},{"$f":"C93*C94","v":0},0,0,0,0,0,0,0,0,{"$f":"L93*L94","v":0},0]
[]
["Other (describe)"]
["Number of Customers",null,null,null,null,null,null,null,null,null,null,null,null,null,"Additional Description"]
["Average Revenue Per Customer"]
["Other Revenue",{"$f":"B98*B99","v":0},{"$f":"C98*C99","v":0},0,0,0,0,0,0,0,0,0,0]
[]
["Notes"]
["1) Please note that revenue projections must be based on rates determined by the approval methods set forth in the draft Operating Plan. "]
[]
["2) The information on this form should fully explain and document your Gross Revenue build-up. State annual inflation rate assumptions, rate increase assumptions, utilization assumptions and any estimates of real "]
["growth you anticipate. If you have any additional descriptions of your assumptions, please use the \"Additional Description\" boxes to the right of each revenue department."]
[]
["3) If you are going to offer authorized services, please clearly identify which service(s) you will offer and use additional rows to describe your revenue buildup for each authorized service."]
[]
["Revenue Assumption Description Example"]
["***The following example does not reflect the above opportunity and is provided for the purpose of clarification only.***"]
[]
["Revenue inflation is expected increase at the same rate as the Consumer Price Index which is predicted to grow at a rate of 2.7% annually, based upon historical growth as reported by the Bureau of Labor Statistics "]
["No real growth is expected to occur, keeping in line with historical revenues at the concession. Therefore, overall revenue growth is forecast to occur at an average annual rate of 2.7% over the life of the Draft Contract."]

{"sheet":"Cash Flow Statement Form","index":6,"n_rows":57,"n_cols":14,"rows_kept":57,"cut":false,"hidden":false,"merged":[]}
["CASH FLOW STATEMENT FORM"]
[]
["Grey Cells Are Input Cells"]
[]
["Name of Offeror"]
[]
["CONCID","CC-OLYM003-26"]
[]
["Prospective Cash Flow Statement"]
[]
["Operating Activities","Year Zero",2026,{"$f":"+C11+1","v":2027},{"$f":"D11+1","v":2028},2029,2030,2031,2032,2033,2034,2035,{"$f":"L11+1","v":2036},{"$f":"M11+1","v":2037}]
["Net Income"]
["Depreciation"]
["Amortization"]
["Other (describe)"]
[]
["Net Cash Provided (Used) by Operating Activities",null,{"$f":"C12+C13+C14+C15","v":0},0,0,0,0,0,0,0,0,0,{"$f":"M12+M13+M14+M15","v":0},0]
[]
["Financing Activities"]
["Dividend"]
["Sale/Repurchase of Stock"]
["Borrowings/ Repayment of Debt"]
["Other (describe)"]
[]
["Net Cash Provided (Used) by Financing Activities",{"$f":"SUM(B20:B23)","v":0},{"$f":"SUM(C20:C23)","v":0},{"$f":"SUM(D20:D23)","v":0},{"$f":"SUM(E20:E23)","v":0},0,0,0,0,0,0,0,{"$f":"SUM(M20:M23)","v":0},0]
[]
["Investment Activities"]
["Leasehold Surrender Interest"]
["Component Renewal Reserve"]
["Personal Property Replacement"]
["Deferred Maintenance "]
["Concessioner Facility Improvement Program (CFIP)"]
["Personal Property Improvement Requirement (PPIR)"]
["Real Property (not Within Park)"]
["Inventory and Supplies"]
["Start-Up Expenses"]
["Working Capital"]
["Other (describe) Fixture Replacement"]
["Other (describe)"]
[]
["Net Cash Provided (Used) by Investing Activities",{"$f":"SUM(B28:B39)","v":0},0,0,0,0,0,0,0,0,0,0,0,0]
[]
["Total Cash Flow",{"$f":"B17+B25+B41","v":0},0,0,0,0,0,0,0,0,0,0,0,0]
[]
["Notes"]
["1) Formulas included in this form are provided by the NPS as guidance only. The Offeror is responsible for its financial projections and their accuracy."]
[]
["2) Yellow cells represent categories that need to be explained on the \"Cash Flow Statement Assumptions\" worksheet."]
[]
["3) Investment activities should include entries for one time acquisition and disposal at the beginning and end of the Draft Contract term as well as cyclical or annual capital investments such as replacement. "]
[]
["4) Estimates for capital expenditures in the Cash Flow Statements made prior to or during the first year after the start of the Draft Contract should be reflective of estimates provide in the Initial Investment "]
["and Start-up Costs form."]
[]
["5) Clearly delineate between personal and real property and define your rationale and assumptions for each category. "]
[]
["6) Since Repair and Maintenance Reserve (component renewal) activities are considered capital expenditures they should be included on the cash flow statement."]

{"sheet":"Cash Flow Statement Assumptions","index":7,"n_rows":20,"n_cols":2,"rows_kept":20,"cut":false,"hidden":false,"merged":[]}
["CASH FLOW STATEMENT ASSUMPTIONS"]
[]
["Grey Cells Are Input Cells"]
[]
["Name of Offeror"]
[]
["CONCID","CC-OLYM003-26"]
[]
["Investment Activities"]
["Leasehold Surrender Interest","Describe - LSI occurring during the Draft Contract"]
["Repair and Maintenance Reserve ","Describe - Repair and Maintenance Reserve expenditures during the Draft Contract"]
["Personal Property Replacement","Describe - Personal property replacement during the Draft Contract "]
["Deferred Maintenance","Describe"]
["Concession Facilities Improvement Program (CFIP)","Describe"]
["Personal Property Improvement Requirement (PPIR)","Describe"]
["Other (describe)","Describe"]
[]
["Notes"]
["1) In the description sections of this form, please provide an explanation of sufficient detail to allow a reviewer to fully "]
["understand how the estimates were determined."]

{"sheet":" Recapture of Investment Form","index":8,"n_rows":37,"n_cols":4,"rows_kept":37,"cut":false,"hidden":false,"merged":[]}
["RECAPTURE OF INVESTMENT FORM"]
[]
["Grey Cells Are Input Cells"]
[]
["Name of Offeror"]
[]
["CONCID","CC-OLYM003-26"]
[]
["Assets and Other"]
[]
[null,"CFIP Leasehold Surrender Interest Value"]
[null,"Real Property (not within the Park)"]
[null,"Personal  Property"]
[null,"Inventory and Supplies"]
[null,"Working Capital"]
[null,"Fixtures LSI Recovery"]
[null,"Other (describe)"]
[null,"Other (describe)"]
[]
[null,"Total of Recapture of Investments at the End of the Contract Term",null,{"$f":"SUM(D11:D18)","v":0}]
[]
["Notes"]
["1) The value of ending LSI is only a best guess estimate neither offeror nor the NPS is bound by the number presented above."]
[]
["2) Reference the Draft Contract and exhibits for guidance on Leasehold Surrender Interest and Personal Property."]
[]
["3) Formulas included in this form are provided by the NPS as guidance only. The Offeror is responsible for its financial "]
["projections and their accuracy."]
[]
["4) Yellow cells represent categories that need to be explained on the \"Recapture of Investment Assumptions\" worksheet."]
[]
["5) All Offerors must include their estimate of the ending value of all property and other assets at the end of the Draft Contract."]
[]
["6) Recapture amounts entered into this form should not be included in the proforma income statement. "]
[]
["7) Recapture amounts entered in this form should be included in the cash flow proforma as capital recapture in the final year "]
["of the Draft Contract."]

{"sheet":"Recapture of Inv Assumptions","index":9,"n_rows":24,"n_cols":2,"rows_kept":24,"cut":false,"hidden":false,"merged":[]}
["RECAPTURE OF INVESTMENT ASSUMPTIONS"]
[]
["Grey Cells Are Input Cells"]
[]
["Name of Offeror"]
[]
["CONCID","OLYM003-26"]
[]
["Assets and Other"]
["Please describe the method used to determine the values of the planned recoup of investments at the end of the "]
["Draft Contract."]
[]
["Leasehold Surrender Interest Value","Describe"]
["Real Property (not within the Park)","Describe"]
["Personal Property","Describe"]
["Inventory and Supplies","Describe"]
["Working Capital","Describe"]
["Other (describe)","Describe"]
["Other (describe)","Describe"]
["Other (describe)","Describe"]
[]
["Notes"]
["1) In the description sections of this form, please provide an explanation of sufficient detail to allow a reviewer to "]
["fully understand how the estimates were determined. "]